Workbook

Sheet weekly claims
A1: week ending sat.
A2: week | B2: date | C2: intial unemployment claims CH | D2: initial unemployment claims EC | E2: unemployment claims EC-MSA
A3: 1 | B3: 1996-01-06 | C3: 190 | D3: 233 | E3: 423
A4: 2 | B4: 1996-01-13 | C4: 224 | D4: 246 | E4: 470
A5: 3 | B5: 1996-01-20 | C5: 117 | D5: 142 | E5: 259
A6: 4 | B6: 1996-01-27 | C6: 153 | D6: 150 | E6: 303
A7: 5 | B7: 1996-02-03 | C7: 203 | D7: 206 | E7: 409
A8: 6 | B8: 1996-02-10 | C8: 134 | D8: 195 | E8: 329
A9: 7 | B9: 1996-02-17 | C9: 111 | D9: 134 | E9: 245
A10: 8 | B10: 1996-02-24 | C10: 100 | D10: 131 | E10: 231
A11: 9 | B11: 1996-03-02 | C11: 112 | D11: 141 | E11: 253
A12: 10 | B12: 1996-03-09 | C12: 101 | D12: 129 | E12: 230
A13: 11 | B13: 1996-03-16 | C13: 126 | D13: 167 | E13: 293
A14: 12 | B14: 1996-03-23 | C14: 121 | D14: 136 | E14: 257
A15: 13 | B15: 1996-03-30 | C15: 134 | D15: 157 | E15: 291
A16: 14 | B16: 1996-04-06 | C16: 132 | D16: 194 | E16: 326
A17: 15 | B17: 1996-04-13 | C17: 114 | D17: 168 | E17: 282
A18: 16 | B18: 1996-04-20 | C18: 97 | D18: 117 | E18: 214
A19: 17 | B19: 1996-04-27 | C19: 83 | D19: 142 | E19: 225
A20: 18 | B20: 1996-05-04 | C20: 83 | D20: 114 | E20: 197
A21: 19 | B21: 1996-05-11 | C21: 61 | D21: 111 | E21: 172
A22: 20 | B22: 1996-05-18 | C22: 59 | D22: 112 | E22: 171
A23: 21 | B23: 1996-05-25 | C23: 85 | D23: 101 | E23: 186
A24: 22 | B24: 1996-06-01 | C24: 89 | D24: 145 | E24: 234
A25: 23 | B25: 1996-06-08 | C25: 128 | D25: 192 | E25: 320
A26: 24 | B26: 1996-06-15 | C26: 95 | D26: 144 | E26: 239
A27: 25 | B27: 1996-06-22 | C27: 91 | D27: 129 | E27: 220
A28: 26 | B28: 1996-06-29 | C28: 79 | D28: 105 | E28: 184
A29: 27 | B29: 1996-07-06 | C29: 90 | D29: 170 | E29: 260
A30: 28 | B30: 1996-07-13 | C30: 79 | D30: 166 | E30: 245
A31: 29 | B31: 1996-07-20 | C31: 70 | D31: 108 | E31: 178
A32: 30 | B32: 1996-07-27 | C32: 57 | D32: 106 | E32: 163
A33: 31 | B33: 1996-08-03 | C33: 52 | D33: 96 | E33: 148
A34: 32 | B34: 1996-08-10 | C34: 47 | D34: 119 | E34: 166
A35: 33 | B35: 1996-08-17 | C35: 44 | D35: 100 | E35: 144
A36: 34 | B36: 1996-08-24 | C36: 40 | D36: 66 | E36: 106
A37: 35 | B37: 1996-08-31 | C37: 47 | D37: 81 | E37: 128
A38: 36 | B38: 1996-09-07 | C38: 56 | D38: 95 | E38: 151
A39: 37 | B39: 1996-09-14 | C39: 33 | D39: 84 | E39: 117
A40: 38 | B40: 1996-09-21 | C40: 59 | D40: 78 | E40: 137
A41: 39 | B41: 1996-09-28 | C41: 37 | D41: 70 | E41: 107
A42: 40 | B42: 1996-10-05 | C42: 53 | D42: 80 | E42: 133
A43: 41 | B43: 1996-10-12 | C43: 74 | D43: 117 | E43: 191
A44: 42 | B44: 1996-10-19 | C44: 66 | D44: 100 | E44: 166
A45: 43 | B45: 1996-10-26 | C45: 100 | D45: 96 | E45: 196
A46: 44 | B46: 1996-11-02 | C46: 105 | D46: 132 | E46: 237
A47: 45 | B47: 1996-11-09 | C47: 97 | D47: 141 | E47: 238
A48: 46 | B48: 1996-11-16 | C48: 135 | D48: 161 | E48: 296
A49: 47 | B49: 1996-11-23 | C49: 228 | D49: 175 | E49: 403
A50: 48 | B50: 1996-11-30 | C50: 315 | D50: 316 | E50: 631
A51: 49 | B51: 1996-12-07 | C51: 201 | D51: 234 | E51: 435
A52: 50 | B52: 1996-12-14 | C52: 115 | D52: 119 | E52: 234
A53: 51 | B53: 1996-12-21 | C53: 148 | D53: 189 | E53: 337
A54: 52 | B54: 1996-12-28 | C54: 298 | D54: 336 | E54: 634
A55: 1 | B55: 1997-01-04 | C55: 181 | D55: 233 | E55: 414
A56: 2 | B56: 1997-01-11 | C56: 188 | D56: 289 | E56: 477
A57: 3 | B57: 1997-01-18 | C57: 159 | D57: 202 | E57: 361
A58: 4 | B58: 1997-01-25 | C58: 131 | D58: 173 | E58: 304
A59: 5 | B59: 1997-02-01 | C59: 118 | D59: 167 | E59: 285
A60: 6 | B60: 1997-02-08 | C60: 120 | D60: 161 | E60: 281
A61: 7 | B61: 1997-02-15 | C61: 120 | D61: 151 | E61: 271
A62: 8 | B62: 1997-02-22 | C62: 90 | D62: 130 | E62: 220
A63: 9 | B63: 1997-03-01 | C63: 118 | D63: 133 | E63: 251
A64: 10 | B64: 1997-03-08 | C64: 120 | D64: 168 | E64: 288
A65: 11 | B65: 1997-03-15 | C65: 120 | D65: 131 | E65: 251
A66: 12 | B66: 1997-03-22 | C66: 100 | D66: 139 | E66: 239
A67: 13 | B67: 1997-03-29 | C67: 106 | D67: 181 | E67: 287
A68: 14 | B68: 1997-04-05 | C68: 121 | D68: 127 | E68: 248
A69: 15 | B69: 1997-04-12 | C69: 107 | D69: 160 | E69: 267
A70: 16 | B70: 1997-04-19 | C70: 103 | D70: 114 | E70: 217
A71: 17 | B71: 1997-04-26 | C71: 49 | D71: 60 | E71: 109
A72: 18 | B72: 1997-05-03 | C72: 67 | D72: 90 | E72: 157
A73: 19 | B73: 1997-05-10 | C73: 83 | D73: 106 | E73: 189
A74: 20 | B74: 1997-05-17 | C74: 56 | D74: 97 | E74: 153
A75: 21 | B75: 1997-05-24 | C75: 78 | D75: 85 | E75: 163
A76: 22 | B76: 1997-05-31 | C76: 89 | D76: 107 | E76: 196
A77: 23 | B77: 1997-06-07 | C77: 108 | D77: 130 | E77: 238
A78: 24 | B78: 1997-06-14 | C78: 51 | D78: 85 | E78: 136
A79: 25 | B79: 1997-06-21 | C79: 62 | D79: 86 | E79: 148
A80: 26 | B80: 1997-06-28 | C80: 69 | D80: 76 | E80: 145
A81: 27 | B81: 1997-07-05 | C81: 123 | D81: 193 | E81: 316
A82: 28 | B82: 1997-07-12 | C82: 72 | D82: 103 | E82: 175
A83: 29 | B83: 1997-07-19 | C83: 56 | D83: 75 | E83: 131
A84: 30 | B84: 1997-07-26 | C84: 54 | D84: 94 | E84: 148
A85: 31 | B85: 1997-08-02 | C85: 61 | D85: 86 | E85: 147
A86: 32 | B86: 1997-08-09 | C86: 62 | D86: 94 | E86: 156
A87: 33 | B87: 1997-08-16 | C87: 48 | D87: 80 | E87: 128
A88: 34 | B88: 1997-08-23 | C88: 47 | D88: 98 | E88: 145
A89: 35 | B89: 1997-08-30 | C89: 55 | D89: 66 | E89: 121
A90: 36 | B90: 1997-09-06 | C90: 57 | D90: 93 | E90: 150
A91: 37 | B91: 1997-09-13 | C91: 46 | D91: 70 | E91: 116
A92: 38 | B92: 1997-09-20 | C92: 44 | D92: 45 | E92: 89
A93: 39 | B93: 1997-09-27 | C93: 49 | D93: 65 | E93: 114
A94: 40 | B94: 1997-10-04 | C94: 50 | D94: 90 | E94: 140
A95: 41 | B95: 1997-10-11 | C95: 49 | D95: 109 | E95: 158
A96: 42 | B96: 1997-10-18 | C96: 56 | D96: 75 | E96: 131
A97: 43 | B97: 1997-10-25 | C97: 60 | D97: 93 | E97: 153
A98: 44 | B98: 1997-11-01 | C98: 85 | D98: 71 | E98: 156
A99: 45 | B99: 1997-11-08 | C99: 149 | D99: 142 | E99: 291
A100: 46 | B100: 1997-11-15 | C100: 147 | D100: 155 | E100: 302
A101: 47 | B101: 1997-11-22 | C101: 221 | D101: 175 | E101: 396
A102: 48 | B102: 1997-11-29 | C102: 390 | D102: 302 | E102: 692
A103: 49 | B103: 1997-12-06 | C103: 181 | D103: 182 | E103: 363
A104: 50 | B104: 1997-12-13 | C104: 139 | D104: 146 | E104: 285
A105: 51 | B105: 1997-12-20 | C105: 130 | D105: 162 | E105: 292
A106: 52 | B106: 1997-12-27 | C106: 281 | D106: 293 | E106: 574
A107: 1 | B107: 1998-01-03 | C107: 214 | D107: 224 | E107: 438
A108: 2 | B108: 1998-01-10 | C108: 194 | D108: 273 | E108: 467
A109: 3 | B109: 1998-01-17 | C109: 169 | D109: 175 | E109: 344
A110: 4 | B110: 1998-01-24 | C110: 142 | D110: 156 | E110: 298
A111: 5 | B111: 1998-01-31 | C111: 96 | D111: 140 | E111: 236
A112: 6 | B112: 1998-02-07 | C112: 119 | D112: 139 | E112: 258
A113: 7 | B113: 1998-02-14 | C113: 163 | D113: 131 | E113: 294
A114: 8 | B114: 1998-02-21 | C114: 144 | D114: 115 | E114: 259
A115: 9 | B115: 1998-02-28 | C115: 100 | D115: 122 | E115: 222
A116: 10 | B116: 1998-03-07 | C116: 115 | D116: 143 | E116: 258
A117: 11 | B117: 1998-03-14 | C117: 132 | D117: 136 | E117: 268
A118: 12 | B118: 1998-03-21 | C118: 86 | D118: 202 | E118: 288
A119: 13 | B119: 1998-03-28 | C119: 95 | D119: 116 | E119: 211
A120: 14 | B120: 1998-04-04 | C120: 74 | D120: 107 | E120: 181
A121: 15 | B121: 1998-04-11 | C121: 110 | D121: 155 | E121: 265
A122: 16 | B122: 1998-04-18 | C122: 74 | D122: 101 | E122: 175
A123: 17 | B123: 1998-04-25 | C123: 57 | D123: 70 | E123: 127
A124: 18 | B124: 1998-05-02 | C124: 48 | D124: 73 | E124: 121
A125: 19 | B125: 1998-05-09 | C125: 53 | D125: 61 | E125: 114
A126: 20 | B126: 1998-05-16 | C126: 39 | D126: 70 | E126: 109
A127: 21 | B127: 1998-05-23 | C127: 63 | D127: 64 | E127: 127
A128: 22 | B128: 1998-05-30 | C128: 48 | D128: 99 | E128: 147
A129: 23 | B129: 1998-06-06 | C129: 74 | D129: 156 | E129: 230
A130: 24 | B130: 1998-06-13 | C130: 69 | D130: 103 | E130: 172
A131: 25 | B131: 1998-06-20 | C131: 36 | D131: 95 | E131: 131
A132: 26 | B132: 1998-06-27 | C132: 52 | D132: 56 | E132: 108
A133: 27 | B133: 1998-07-04 | C133: 70 | D133: 83 | E133: 153
A134: 28 | B134: 1998-07-11 | C134: 75 | D134: 89 | E134: 164
A135: 29 | B135: 1998-07-18 | C135: 57 | D135: 80 | E135: 137
A136: 30 | B136: 1998-07-25 | C136: 46 | D136: 76 | E136: 122
A137: 31 | B137: 1998-08-01 | C137: 46 | D137: 94 | E137: 140
A138: 32 | B138: 1998-08-08 | C138: 56 | D138: 81 | E138: 137
A139: 33 | B139: 1998-08-15 | C139: 41 | D139: 98 | E139: 139
A140: 34 | B140: 1998-08-22 | C140: 74 | D140: 123 | E140: 197
A141: 35 | B141: 1998-08-29 | C141: 56 | D141: 106 | E141: 162
A142: 36 | B142: 1998-09-05 | C142: 46 | D142: 79 | E142: 125
A143: 37 | B143: 1998-09-12 | C143: 42 | D143: 88 | E143: 130
A144: 38 | B144: 1998-09-19 | C144: 34 | D144: 61 | E144: 95
A145: 39 | B145: 1998-09-26 | C145: 62 | D145: 73 | E145: 135
A146: 40 | B146: 1998-10-03 | C146: 45 | D146: 76 | E146: 121
A147: 41 | B147: 1998-10-10 | C147: 80 | D147: 113 | E147: 193
A148: 42 | B148: 1998-10-17 | C148: 53 | D148: 92 | E148: 145
A149: 43 | B149: 1998-10-24 | C149: 60 | D149: 87 | E149: 147
A150: 44 | B150: 1998-10-31 | C150: 82 | D150: 108 | E150: 190
A151: 45 | B151: 1998-11-07 | C151: 93 | D151: 115 | E151: 208
A152: 46 | B152: 1998-11-14 | C152: 116 | D152: 143 | E152: 259
A153: 47 | B153: 1998-11-21 | C153: 173 | D153: 173 | E153: 346
A154: 48 | B154: 1998-11-28 | C154: 367 | D154: 314 | E154: 681
A155: 49 | B155: 1998-12-05 | C155: 145 | D155: 150 | E155: 295
A156: 50 | B156: 1998-12-12 | C156: 93 | D156: 113 | E156: 206
A157: 51 | B157: 1998-12-19 | C157: 150 | D157: 112 | E157: 262
A158: 52 | B158: 1998-12-26 | C158: 373 | D158: 290 | E158: 663
A159: 1 | B159: 1999-01-02 | C159: 237 | D159: 225 | E159: 462
A160: 2 | B160: 1999-01-09 | C160: 237 | D160: 245 | E160: 482
A161: 3 | B161: 1999-01-16 | C161: 126 | D161: 151 | E161: 277
A162: 4 | B162: 1999-01-23 | C162: 109 | D162: 140 | E162: 249
A163: 5 | B163: 1999-01-30 | C163: 90 | D163: 125 | E163: 215
A164: 6 | B164: 1999-02-06 | C164: 106 | D164: 133 | E164: 239
A165: 7 | B165: 1999-02-13 | C165: 100 | D165: 126 | E165: 226
A166: 8 | B166: 1999-02-20 | C166: 114 | D166: 107 | E166: 221
A167: 9 | B167: 1999-02-27 | C167: 115 | D167: 125 | E167: 240
A168: 10 | B168: 1999-03-06 | C168: 100 | D168: 98 | E168: 198
A169: 11 | B169: 1999-03-13 | C169: 105 | D169: 95 | E169: 200
A170: 12 | B170: 1999-03-20 | C170: 86 | D170: 170 | E170: 256
A171: 13 | B171: 1999-03-27 | C171: 93 | D171: 147 | E171: 240
A172: 14 | B172: 1999-04-03 | C172: 116 | D172: 159 | E172: 275
A173: 15 | B173: 1999-04-10 | C173: 274 | D173: 367 | E173: 641
A174: 16 | B174: 1999-04-17 | C174: 135 | D174: 161 | E174: 296
A175: 17 | B175: 1999-04-24 | C175: 98 | D175: 151 | E175: 249
A176: 18 | B176: 1999-05-01 | C176: 105 | D176: 154 | E176: 259
A177: 19 | B177: 1999-05-08 | C177: 71 | D177: 116 | E177: 187
A178: 20 | B178: 1999-05-15 | C178: 68 | D178: 91 | E178: 159
A179: 21 | B179: 1999-05-22 | C179: 53 | D179: 86 | E179: 139
A180: 22 | B180: 1999-05-29 | C180: 40 | D180: 109 | E180: 149
A181: 23 | B181: 1999-06-05 | C181: 49 | D181: 158 | E181: 207
A182: 24 | B182: 1999-06-12 | C182: 100 | D182: 118 | E182: 218
A183: 25 | B183: 1999-06-19 | C183: 73 | D183: 88 | E183: 161
A184: 26 | B184: 1999-06-26 | C184: 57 | D184: 77 | E184: 134
A185: 27 | B185: 1999-07-03 | C185: 58 | D185: 67 | E185: 125
A186: 28 | B186: 1999-07-10 | C186: 100 | D186: 105 | E186: 205
A187: 29 | B187: 1999-07-17 | C187: 48 | D187: 82 | E187: 130
A188: 30 | B188: 1999-07-24 | C188: 39 | D188: 89 | E188: 128
A189: 31 | B189: 1999-07-31 | C189: 61 | D189: 82 | E189: 143
A190: 32 | B190: 1999-08-07 | C190: 55 | D190: 93 | E190: 148
A191: 33 | B191: 1999-08-14 | C191: 70 | D191: 117 | E191: 187
A192: 34 | B192: 1999-08-21 | C192: 34 | D192: 60 | E192: 94
A193: 35 | B193: 1999-08-28 | C193: 44 | D193: 62 | E193: 106
A194: 36 | B194: 1999-09-04 | C194: 48 | D194: 76 | E194: 124
A195: 37 | B195: 1999-09-11 | C195: 45 | D195: 58 | E195: 103
A196: 38 | B196: 1999-09-18 | C196: 39 | D196: 58 | E196: 97
A197: 39 | B197: 1999-09-25 | C197: 38 | D197: 72 | E197: 110
A198: 40 | B198: 1999-10-02 | C198: 40 | D198: 60 | E198: 100
A199: 41 | B199: 1999-10-09 | C199: 75 | D199: 85 | E199: 160
A200: 42 | B200: 1999-10-16 | C200: 56 | D200: 93 | E200: 149
... 891 more rows

Sheet work details
A2: 4. DWD-Div of UE Insurance | C2: http://www.dwd.state.wi.us/uistats/default.htm
A4: cvcerd folder, economic indicators folder, data, folder, empl_unempl_jobs folder
A5: File Name: ec_ch_initial_unemp.xls (w = weekly, aw = avg weekly)
A8: Initial Unemployment Claims Filed
A9: -In current week click on open current year publication
A10: -Scroll down to Page 5 as numbered on the document
A11: -Get numbers for Chippewa and Eau Claire Counties and put in weekly tab (wic)
A12: -Pull down formula for ecch
A14: ec_wic-----Eau Claire County Weekly Initial UE Claims
A15: ch_wic-----Chippewa County Weekly Initial UE Claims
A16: ecch_wic-----Weekly Initial UE Claims (Eau Claire MSA)
A18: Available weekly about 3-4 days after end of week.
A19: *Update (8/7/13): Page 5 of the PDF provides ‘Total New Claims’ (last column) only for recent week. Repeat process for each week since last data update/report.
A21: -Calculate Average Weekly for the Month (use average command)
A22: -Do this for Chippewa County and then pull formula over for Eau Claire County and ecch.
A24: Data Timing if week goes into next month.
A25: If new month is 3 or less it is part of previous month.
A26: If new month is 4 or more it is part of the new month.
A28: ec_awic-----Eau Claire County Average Weekly Initial UE Claims
A29: ch_awic-----Chippewa County Average Weekly Initial UE Claims
A30: ecch_awic-----Average Weekly Initial UE Claims (Eau Claire MSA)
A33: Report: Page 9
A34: Web Data Folder, unemployment folder, cvcerd_initial_unemployment_claims_data_2010-2019.xls
A38: Possible WI Department of Workforce Development-Labor Market Info (DWD-LMI) Contacts
A40: Heather Thompson: DWD Local Area Unemployment Statistics, heather.thompson@dwd.wisconsin.gov, 608-267-5053
A41: Andy Peters: DWD Current Employment Statistics, 608-266-5322
A42: Scott Hodek: DWD Job Count, Scott.Hodek@dwd.wisconsin.gov, 715-836-2997
A44: Dennis Winters: DWD Chief Economist, Dennis.Winters@dwd.wisconsin.gov, 608-267-3262
A45: Eric Grosso: DWD Labor Market Analyst, 608-266-7034
B46: Peter Goertz: DWD Labor Market UE, peter.goertz@dwd.state.wi.us

Sheet average monthly claims
A1: month | B1: average unemployment claims CH | C1: average unemployment claims EC | D1: average unemployment claims EC-MSA
A2: 1996-01-01 | B2: 177.4 | C2: 195.4 | D2: 372.8
A3: 1996-02-01 | B3: 114.25 | C3: 150.25 | D3: 264.5
A4: 1996-03-01 | B4: 120.5 | C4: 147.25 | D4: 267.75
A5: 1996-04-01 | B5: 106.5 | C5: 155.25 | D5: 261.75
A6: 1996-05-01 | B6: 75.4 | C6: 116.6 | D6: 192
A7: 1996-06-01 | B7: 98.25 | C7: 142.5 | D7: 240.75
A8: 1996-07-01 | B8: 69.6 | C8: 129.2 | D8: 198.8
A9: 1996-08-01 | B9: 44.5 | C9: 91.5 | D9: 136
A10: 1996-09-01 | B10: 46.25 | C10: 81.75 | D10: 128
A11: 1996-10-01 | B11: 79.6 | C11: 105 | D11: 184.6
A12: 1996-11-01 | B12: 193.75 | C12: 198.25 | D12: 392
A13: 1996-12-01 | B13: 190.5 | C13: 219.5 | D13: 410
A14: 1997-01-01 | B14: 155.4 | C14: 212.8 | D14: 368.2
A15: 1997-02-01 | B15: 112 | C15: 143.75 | D15: 255.75
A16: 1997-03-01 | B16: 111.5 | C16: 154.75 | D16: 266.25
A17: 1997-04-01 | B17: 89.4 | C17: 110.2 | D17: 199.6
A18: 1997-05-01 | B18: 76.5 | C18: 98.75 | D18: 175.25
A19: 1997-06-01 | B19: 72.5 | C19: 94.25 | D19: 166.75
A20: 1997-07-01 | B20: 73.2 | C20: 110.2 | D20: 183.4
A21: 1997-08-01 | B21: 53 | C21: 84.5 | D21: 137.5
A22: 1997-09-01 | B22: 49 | C22: 68.25 | D22: 117.25
A23: 1997-10-01 | B23: 60 | C23: 87.6 | D23: 147.6
A24: 1997-11-01 | B24: 226.75 | C24: 193.5 | D24: 420.25
A25: 1997-12-01 | B25: 189 | C25: 201.4 | D25: 390.4
A26: 1998-01-01 | B26: 150.25 | C26: 186 | D26: 336.25
A27: 1998-02-01 | B27: 131.5 | C27: 126.75 | D27: 258.25
A28: 1998-03-01 | B28: 107 | C28: 149.25 | D28: 256.25
A29: 1998-04-01 | B29: 72.6 | C29: 101.2 | D29: 173.8
A30: 1998-05-01 | B30: 50.75 | C30: 73.5 | D30: 124.25
A31: 1998-06-01 | B31: 57.75 | C31: 102.5 | D31: 160.25
A32: 1998-07-01 | B32: 58.8 | C32: 84.4 | D32: 143.2
A33: 1998-08-01 | B33: 56.75 | C33: 102 | D33: 158.75
A34: 1998-09-01 | B34: 45.8 | C34: 75.4 | D34: 121.2
A35: 1998-10-01 | B35: 68.75 | C35: 100 | D35: 168.75
A36: 1998-11-01 | B36: 187.25 | C36: 186.25 | D36: 373.5
A37: 1998-12-01 | B37: 199.6 | C37: 178 | D37: 377.6
A38: 1999-01-01 | B38: 140.5 | C38: 165.25 | D38: 305.75
A39: 1999-02-01 | B39: 108.75 | C39: 122.75 | D39: 231.5
A40: 1999-03-01 | B40: 100 | C40: 133.8 | D40: 233.8
A41: 1999-04-01 | B41: 153 | C41: 208.25 | D41: 361.25
A42: 1999-05-01 | B42: 58 | C42: 100.5 | D42: 158.5
A43: 1999-06-01 | B43: 67.4 | C43: 101.6 | D43: 169
A44: 1999-07-01 | B44: 62 | C44: 89.5 | D44: 151.5
A45: 1999-08-01 | B45: 50.75 | C45: 83 | D45: 133.75
A46: 1999-09-01 | B46: 42 | C46: 64.8 | D46: 106.8
A47: 1999-10-01 | B47: 62 | C47: 87 | D47: 149
A48: 1999-11-01 | B48: 238.5 | C48: 201.75 | D48: 440.25
A49: 1999-12-01 | B49: 214.2 | C49: 229.6 | D49: 443.8
A50: 2000-01-01 | B50: 164 | C50: 182.5 | D50: 346.5
A51: 2000-02-01 | B51: 135.25 | C51: 137 | D51: 272.25
A52: 2000-03-01 | B52: 133 | C52: 225.2 | D52: 358.2
A53: 2000-04-01 | B53: 150.5 | C53: 253 | D53: 403.5
A54: 2000-05-01 | B54: 83.2 | C54: 144 | D54: 227.2
A55: 2000-06-01 | B55: 94.5 | C55: 114 | D55: 208.5
A56: 2000-07-01 | B56: 86.5 | C56: 102.75 | D56: 189.25
A57: 2000-08-01 | B57: 74.2 | C57: 107 | D57: 181.2
A58: 2000-09-01 | B58: 72.75 | C58: 78.5 | D58: 151.25
A59: 2000-10-01 | B59: 89 | C59: 103.5 | D59: 192.5
A60: 2000-11-01 | B60: 299.6 | C60: 213 | D60: 512.6
A61: 2000-12-01 | B61: 264 | C61: 227.5 | D61: 491.5
A62: 2001-01-01 | B62: 210.8 | C62: 252.4 | D62: 463.2
A63: 2001-02-01 | B63: 172.75 | C63: 228.75 | D63: 401.5
A64: 2001-03-01 | B64: 169 | C64: 218.75 | D64: 387.75
A65: 2001-04-01 | B65: 195.5 | C65: 212.25 | D65: 407.75
A66: 2001-05-01 | B66: 175.2 | C66: 231 | D66: 406.2
A67: 2001-06-01 | B67: 159.5 | C67: 177.5 | D67: 337
A68: 2001-07-01 | B68: 213.75 | C68: 257.75 | D68: 471.5
A69: 2001-08-01 | B69: 177 | C69: 220.8 | D69: 397.8
A70: 2001-09-01 | B70: 121.75 | C70: 169 | D70: 290.75
A71: 2001-10-01 | B71: 155.2 | C71: 159.6 | D71: 314.8
A72: 2001-11-01 | B72: 375.5 | C72: 328 | D72: 703.5
A73: 2001-12-01 | B73: 359.75 | C73: 310.5 | D73: 670.25
A74: 2002-01-01 | B74: 264.8 | C74: 297.8 | D74: 562.6
A75: 2002-02-01 | B75: 180.25 | C75: 204.5 | D75: 384.75
A76: 2002-03-01 | B76: 173.25 | C76: 231 | D76: 404.25
A77: 2002-04-01 | B77: 162.5 | C77: 199.75 | D77: 362.25
A78: 2002-05-01 | B78: 200.2 | C78: 212.2 | D78: 412.4
A79: 2002-06-01 | B79: 114 | C79: 152.25 | D79: 266.25
A80: 2002-07-01 | B80: 173.6 | C80: 178.6 | D80: 352.2
A81: 2002-08-01 | B81: 112.75 | C81: 129.5 | D81: 242.25
A82: 2002-09-01 | B82: 103.25 | C82: 126 | D82: 229.25
A83: 2002-10-01 | B83: 161 | C83: 168.4 | D83: 329.4
A84: 2002-11-01 | B84: 291.75 | C84: 297.25 | D84: 589
A85: 2002-12-01 | B85: 318 | C85: 324.5 | D85: 642.5
A86: 2003-01-01 | B86: 235.8 | C86: 296.6 | D86: 532.4
A87: 2003-02-01 | B87: 204.25 | C87: 264 | D87: 468.25
A88: 2003-03-01 | B88: 163 | C88: 226.5 | D88: 389.5
A89: 2003-04-01 | B89: 149.8 | C89: 219.6 | D89: 369.4
A90: 2003-05-01 | B90: 136 | C90: 229.75 | D90: 365.75
A91: 2003-06-01 | B91: 134.5 | C91: 197.5 | D91: 332
A92: 2003-07-01 | B92: 138 | C92: 210.2 | D92: 348.2
A93: 2003-08-01 | B93: 116.75 | C93: 168.5 | D93: 285.25
A94: 2003-09-01 | B94: 99.75 | C94: 142.25 | D94: 242
A95: 2003-10-01 | B95: 123.4 | C95: 169.8 | D95: 293.2
A96: 2003-11-01 | B96: 267.25 | C96: 283.75 | D96: 551
A97: 2003-12-01 | B97: 299.8 | C97: 334.2 | D97: 634
A98: 2004-01-01 | B98: 222 | C98: 271.25 | D98: 493.25
A99: 2004-02-01 | B99: 184.75 | C99: 230.5 | D99: 415.25
A100: 2004-03-01 | B100: 161.4 | C100: 214.4 | D100: 375.8
A101: 2004-04-01 | B101: 144.5 | C101: 213.25 | D101: 357.75
A102: 2004-05-01 | B102: 118.5 | C102: 185 | D102: 303.5
A103: 2004-06-01 | B103: 122.2 | C103: 200.2 | D103: 322.4
A104: 2004-07-01 | B104: 123.5 | C104: 194.5 | D104: 318
A105: 2004-08-01 | B105: 99 | C105: 126 | D105: 225
A106: 2004-09-01 | B106: 111 | C106: 135.6 | D106: 246.6
A107: 2004-10-01 | B107: 104 | C107: 115.75 | D107: 219.75
A108: 2004-11-01 | B108: 247.5 | C108: 213.75 | D108: 461.25
A109: 2004-12-01 | B109: 282 | C109: 277.8 | D109: 559.8
A110: 2005-01-01 | B110: 215.25 | C110: 231.25 | D110: 446.5
A111: 2005-02-01 | B111: 180.5 | C111: 181.5 | D111: 362
A112: 2005-03-01 | B112: 170.2 | C112: 188 | D112: 358.2
A113: 2005-04-01 | B113: 138.5 | C113: 143.25 | D113: 281.75
A114: 2005-05-01 | B114: 125 | C114: 139.75 | D114: 264.75
A115: 2005-06-01 | B115: 120.6 | C115: 153.8 | D115: 274.4
A116: 2005-07-01 | B116: 102 | C116: 126.25 | D116: 228.25
A117: 2005-08-01 | B117: 104.2 | C117: 142.2 | D117: 246.4
A118: 2005-09-01 | B118: 76.75 | C118: 101.5 | D118: 178.25
A119: 2005-10-01 | B119: 115.5 | C119: 118.75 | D119: 234.25
A120: 2005-11-01 | B120: 256.6 | C120: 204.2 | D120: 460.8
A121: 2005-12-01 | B121: 265.25 | C121: 220 | D121: 485.25
A122: 2006-01-01 | B122: 198 | C122: 214 | D122: 412
A123: 2006-02-01 | B123: 147 | C123: 150.25 | D123: 297.25
A124: 2006-03-01 | B124: 163.4 | C124: 195.6 | D124: 359
A125: 2006-04-01 | B125: 128 | C125: 188 | D125: 316
A126: 2006-05-01 | B126: 127 | C126: 193.2 | D126: 320.2
A127: 2006-06-01 | B127: 107 | C127: 294.75 | D127: 294.75
A128: 2006-07-01 | B128: 150 | C128: 232.75 | D128: 382.75
A129: 2006-08-01 | B129: 111.6 | C129: 170 | D129: 281.6
A130: 2006-09-01 | B130: 107.5 | C130: 140.75 | D130: 248.25
A131: 2006-10-01 | B131: 129.5 | C131: 173.25 | D131: 302.75
A132: 2006-11-01 | B132: 274.2 | C132: 255.2 | D132: 529.4
A133: 2006-12-01 | B133: 272.5 | C133: 263.75 | D133: 536.25
A134: 2007-01-01 | B134: 218.2 | C134: 205.8 | D134: 424
A135: 2007-02-01 | B135: 170.5 | C135: 185.5 | D135: 356
A136: 2007-03-01 | B136: 214.75 | C136: 254.5 | D136: 469.25
A137: 2007-04-01 | B137: 205.75 | C137: 244.5 | D137: 450.25
A138: 2007-05-01 | B138: 178 | C138: 269 | D138: 447
A139: 2007-06-01 | B139: 132.25 | C139: 216.75 | D139: 349
A140: 2007-07-01 | B140: 159 | C140: 197.75 | D140: 356.75
A141: 2007-08-01 | B141: 112.6 | C141: 130.4 | D141: 243
A142: 2007-09-01 | B142: 89 | C142: 110.25 | D142: 199.25
A143: 2007-10-01 | B143: 122.4 | C143: 123.4 | D143: 245.8
A144: 2007-11-01 | B144: 293 | C144: 240.75 | D144: 533.75
A145: 2007-12-01 | B145: 281 | C145: 241.25 | D145: 522.25
A146: 2008-01-01 | B146: 214.2 | C146: 242.4 | D146: 456.6
A147: 2008-02-01 | B147: 176 | C147: 187.75 | D147: 363.75
A148: 2008-03-01 | B148: 193.5 | C148: 222.25 | D148: 415.75
A149: 2008-04-01 | B149: 162.4 | C149: 165.4 | D149: 327.8
A150: 2008-05-01 | B150: 138.75 | C150: 203.25 | D150: 342
A151: 2008-06-01 | B151: 124.25 | C151: 167.5 | D151: 291.75
A152: 2008-07-01 | B152: 162 | C152: 208.6 | D152: 370.6
A153: 2008-08-01 | B153: 112 | C153: 147.75 | D153: 259.75
A154: 2008-09-01 | B154: 117 | C154: 137 | D154: 254
A155: 2008-10-01 | B155: 182.8 | C155: 209.8 | D155: 392.6
A156: 2008-11-01 | B156: 395.5 | C156: 400.75 | D156: 796.25
A157: 2008-12-01 | B157: 420 | C157: 497.6 | D157: 432.3258427
A158: 2009-01-01 | B158: 381 | C158: 428.5 | D158: 809.5
A159: 2009-02-01 | B159: 363.75 | C159: 405.75 | D159: 769.5
A160: 2009-03-01 | B160: 393.25 | C160: 450.5 | D160: 843.75
A161: 2009-04-01 | B161: 390 | C161: 409.8 | D161: 799.8
A162: 2009-05-01 | B162: 296 | C162: 357.25 | D162: 653.25
A163: 2009-06-01 | B163: 273 | C163: 306.25 | D163: 579.25
A164: 2009-07-01 | B164: 264.6 | C164: 311.4 | D164: 576
A165: 2009-08-01 | B165: 241.5 | C165: 279.25 | D165: 520.75
A166: 2009-09-01 | B166: 216 | C166: 278.6 | D166: 494.6
A167: 2009-10-01 | B167: 268.75 | C167: 313.25 | D167: 582
A168: 2009-11-01 | B168: 341.5 | C168: 361.5 | D168: 703
A169: 2009-12-01 | B169: 347.4 | C169: 363.8 | D169: 711.2
A170: 2010-01-01 | B170: 370.75 | C170: 474.25 | D170: 845
A171: 2010-02-01 | B171: 267.5 | C171: 322 | D171: 589.5
A172: 2010-03-01 | B172: 220 | C172: 334.4 | D172: 554.4
A173: 2010-04-01 | B173: 229.5 | C173: 332.5 | D173: 562
A174: 2010-05-01 | B174: 171 | C174: 282.5 | D174: 453.5
A175: 2010-06-01 | B175: 182.4 | C175: 269.6 | D175: 452
A176: 2010-07-01 | B176: 258.5 | C176: 371.25 | D176: 629.75
A177: 2010-08-01 | B177: 193.5 | C177: 276.25 | D177: 556.25
A178: 2010-09-01 | B178: 196 | C178: 264 | D178: 460
A179: 2010-10-01 | B179: 226.25 | C179: 316.5 | D179: 542.75
A180: 2010-11-01 | B180: 285.75 | C180: 311.25 | D180: 597
A181: 2010-12-01 | B181: 296.5 | C181: 357 | D181: 653.5
A182: 2011-01-01 | B182: 301.5 | C182: 425.75 | D182: 727.25
A183: 2011-02-01 | B183: 233 | C183: 319 | D183: 552
A184: 2011-03-01 | B184: 248.4 | C184: 313.4 | D184: 561.8
A185: 2011-04-01 | B185: 253.5 | C185: 286 | D185: 539.5
A186: 2011-05-01 | B186: 213.5 | C186: 237.5 | D186: 451
A187: 2011-06-01 | B187: 173.8 | C187: 210.4 | D187: 384.2
A188: 2011-07-01 | B188: 186 | C188: 225 | D188: 411
A189: 2011-08-01 | B189: 182.2 | C189: 225 | D189: 407.2
A190: 2011-09-01 | B190: 133.25 | C190: 168.25 | D190: 301.5
A191: 2011-10-01 | B191: 178 | C191: 208.5 | D191: 386.5
A192: 2011-11-01 | B192: 252.2 | C192: 259.4 | D192: 511.6
A193: 2011-12-01 | B193: 256 | C193: 324.25 | D193: 580.25
A194: 2012-01-01 | B194: 240.25 | C194: 317.25 | D194: 557.5
A195: 2012-02-01 | B195: 185.6 | C195: 214.6 | D195: 400.2
A196: 2012-03-01 | B196: 173.75 | C196: 223 | D196: 396.75
A197: 2012-04-01 | B197: 168.25 | C197: 213.5 | D197: 381.75
A198: 2012-05-01 | B198: 151.6 | C198: 177.8 | D198: 329.4
A199: 2012-06-01 | B199: 172 | C199: 214.25 | D199: 386.25
A200: 2012-07-01 | B200: 218.5 | C200: 251.5 | D200: 470
... 38 more rows

Sheet mnth-mnth
A1: ecch_awic | B1: jan | C1: feb | D1: mar | E1: apr | F1: may | G1: jun | H1: jul | I1: aug | J1: sep | K1: oct | L1: nov | M1: dec | N1: ytd_total
A2: 2003 | B2: 532.4 | C2: 468.25 | D2: 389.5 | E2: 369.4 | F2: 365.75 | G2: 332 | H2: 348.2 | I2: 285.25 | J2: 242 | K2: 293.2 | L2: 551 | M2: 634 | N2: =SUM('weekly claims'!E368:E420) -> 21421 | O2: =SUM('weekly claims'!E368:E420) -> 21421
A3: 2004 | B3: 493 | C3: 415 | D3: 375.8 | E3: 357.75 | F3: 303.5 | G3: 322 | H3: 318 | I3: 225 | J3: 247 | K3: 220 | L3: 461 | M3: 560 | N3: =SUM('weekly claims'!E421:E472) -> 18698 | O3: =SUM('weekly claims'!E421:E472) -> 18698
A4: 2005 | B4: 447 | C4: 362 | D4: 358 | E4: 282 | F4: 265 | G4: 274 | H4: 228 | I4: 246 | J4: 178 | K4: 234 | L4: 461 | M4: 485 | N4: =SUM('weekly claims'!E473:E524) -> 16623 | O4: =SUM('weekly claims'!E473:E524) -> 16623
A5: 2006 | B5: 412 | C5: 297 | D5: 359 | E5: 316 | F5: 320 | G5: 295 | H5: 383 | I5: 282 | J5: 248 | K5: 303 | L5: 529 | M5: 536 | N5: =SUM('weekly claims'!E525:E576) -> 18611 | O5: =SUM('weekly claims'!E525:E576) -> 18611
A6: 2007 | B6: 424 | C6: 356 | D6: 469 | E6: 450 | F6: 447 | G6: 349 | H6: 357 | I6: 243 | J6: 199 | K6: 246 | L6: 534 | M6: 522 | N6: =SUM('weekly claims'!E577:E628) -> 19745 | O6: =SUM('weekly claims'!E577:E628) -> 19745
A7: 2008 | B7: 457 | C7: 364 | D7: 416 | E7: 328 | F7: 342 | G7: 292 | H7: 371 | I7: 260 | J7: 254 | K7: 393 | L7: 796 | M7: 880 | N7: =SUM('weekly claims'!E629:E681) -> 23219 | O7: =SUM('weekly claims'!E629:E681) -> 23219
A8: 2009 | B8: 810 | C8: 770 | D8: 844 | E8: 800 | F8: 653 | G8: 579 | H8: 576 | I8: 521 | J8: 495 | K8: 582 | L8: 703 | M8: 711 | N8: =SUM('weekly claims'!E682:E733) -> 34752 | O8: =SUM('weekly claims'!E682:E733) -> 34752
A9: 2010 | B9: 845 | C9: 590 | D9: 554 | E9: 562 | F9: 454 | G9: 452 | H9: 630 | I9: 556 | J9: 460 | K9: 543 | L9: 597 | M9: 697 | N9: =SUM('weekly claims'!E734:F785) -> 29572 | O9: =SUM('weekly claims'!E734:E785) -> 29572
A10: 2011 | B10: 727 | C10: 552 | D10: 562 | E10: 540 | F10: 451 | G10: 384 | H10: 411 | I10: 407 | J10: 302 | K10: 387 | L10: 512 | M10: 580 | N10: =SUM('weekly claims'!E786:E837) -> 25120 | O10: =SUM('weekly claims'!E786:E837) -> 25120
A11: 2012 | B11: 558 | C11: 400 | D11: 397 | E11: 382 | F11: 329 | G11: 386 | H11: 470 | I11: 346 | J11: 365 | K11: 368 | L11: 602 | M11: 529 | N11: =SUM('weekly claims'!E838:E889) -> 21969 | O11: =SUM('weekly claims'!E838:E889) -> 21969
A12: 2013 | B12: 497 | C12: 341 | D12: 336 | E12: 373 | F12: 279 | G12: 237 | H12: 221 | I12: 196 | J12: 177 | K12: 219 | L12: 352 | M12: 415 | N12: =SUM('weekly claims'!E890:E941) -> 15757 | O12: =SUM('weekly claims'!E890:E941) -> 15757
A13: 2014 | B13: 399 | C13: 336 | D13: 312 | E13: 256 | F13: 230 | G13: 248 | H13: 207 | I13: 168 | J13: 139 | K13: 165 | L13: 412 | M13: 323 | N13: =SUM('weekly claims'!E942:E992) -> 13478 | O13: =SUM('weekly claims'!E942:E993) -> 13478
A14: 2015
B16: jan-dec | C16: feb-jan | D16: mar-feb | E16: apr-mar | F16: may-apr | G16: jun-may | H16: jul-jun | I16: aug-jul | J16: sep-aug | K16: oct-sep | L16: nov-oct | M16: dec-nov
A17: change_04 | B17: =B3-M2 -> -141 | C17: =C3-B3 -> -78 | D17: -39.2 | E17: -18.05 | F17: -54.25 | G17: 18.5 | H17: -4 | I17: -93 | J17: 22 | K17: =K3-J3 -> -27 | L17: =L3-K3 -> 241 | M17: =M3-L3 -> 99
A18: %change_04 | B18: =(B17/M2)*100 -> -22.23974763 | C18: =(C17/B3)*100 -> -15.82150101 | D18: -9.445783133 | E18: -4.803086748 | F18: -15.16422082 | G18: 6.095551895 | H18: -1.242236025 | I18: -29.24528302 | J18: 9.777777778 | K18: -10.93117409 | L18: 109.5454545 | M18: 21.47505423
B19: jan | C19: feb | D19: mar | E19: apr | F19: may | G19: jun | H19: jul | I19: aug | J19: sep | K19: oct | L19: nov | M19: dec | N19: ytd_total
A20: chg_prv_04-03 | B20: =B3-B2 -> -39.4 | C20: -53.25 | D20: -13.7 | E20: -11.65 | F20: -62.25 | G20: -10 | H20: =H3-H2 -> -30.2 | I20: -60.25 | J20: 5 | K20: -73.2 | L20: -90 | M20: -74 | N20: =O3-O2 -> -2723
A21: %chg_prv_04-03 | B21: =(B20/B2)*100 -> -7.400450789 | C21: -11.37213027 | D21: -3.51732991 | E21: -3.153762859 | F21: -17.01982228 | G21: -3.012048193 | H21: -8.673176335 | I21: -21.12182296 | J21: 2.066115702 | K21: -24.96589359 | L21: -16.33393829 | M21: -11.67192429 | N21: =(N20/O2)*100 -> -12.71182484
B23: jan-dec | C23: feb-jan | D23: mar-feb | E23: apr-mar | F23: may-apr | G23: jun-may | H23: jul-jun | I23: aug-jul | J23: sep-aug | K23: oct-sep | L23: nov-oct | M23: dec-nov
A24: change_05 | B24: =B4-M3 -> -113 | C24: =C4-B4 -> -85 | D24: -4 | E24: -76 | F24: -17 | G24: 9 | H24: -46 | I24: 18 | J24: -68 | K24: 56 | L24: 227 | M24: 24
A25: %change_05 | B25: =(B24/M3)*100 -> -20.17857143 | C25: =(C24/B4)*100 -> -19.01565996 | D25: -1.104972376 | E25: -21.22905028 | F25: -6.028368794 | G25: 3.396226415 | H25: -16.78832117 | I25: 7.894736842 | J25: -27.64227642 | K25: 31.46067416 | L25: 97.00854701 | M25: 5.206073753
B26: jan | C26: feb | D26: mar | E26: apr | F26: may | G26: jun | H26: jul | I26: aug | J26: sep | K26: oct | L26: nov | M26: dec | N26: ytd_total
A27: chg_prv_05-04 | B27: =B4-B3 -> -46 | C27: -53 | D27: -17.8 | E27: -75.75 | F27: -38.5 | G27: -48 | H27: =H4-H3 -> -90 | I27: 21 | J27: -69 | K27: 14 | L27: 0 | M27: -75 | N27: =O4-O3 -> -2075
A28: %chg_prv_05-04 | B28: =(B27/B3)*100 -> -9.330628803 | C28: -12.77108434 | D28: -4.736562001 | E28: -21.17400419 | F28: -12.68533773 | G28: -14.9068323 | H28: -28.30188679 | I28: 9.333333333 | J28: -27.93522267 | K28: 6.363636364 | L28: 0 | M28: -13.39285714 | N28: =(N27/O3)*100 -> -11.09744358
B30: jan-dec | C30: feb-jan | D30: mar-feb | E30: apr-mar | F30: may-apr | G30: jun-may | H30: jul-jun | I30: aug-jul | J30: sep-aug | K30: oct-sep | L30: nov-oct | M30: dec-nov
A31: change_06 | B31: =B5-M4 -> -73 | C31: =C5-B5 -> -115 | D31: 62 | E31: -43 | F31: 4 | G31: -25 | H31: 88 | I31: -101 | J31: -34 | K31: 55 | L31: =L5-K5 -> 226 | M31: =M5-L5 -> 7
A32: %change_06 | B32: =(B31/M4)*100 -> -15.05154639 | C32: =(C31/B5)*100 -> -27.91262136 | D32: 20.87542088 | E32: -11.97771588 | F32: 1.265822785 | G32: -7.8125 | H32: 29.83050847 | I32: -26.37075718 | J32: -12.05673759 | K32: 22.17741935 | L32: 74.58745875 | M32: 1.323251418
B33: jan | C33: feb | D33: mar | E33: apr | F33: may | G33: jun | H33: jul | I33: aug | J33: sep | K33: oct | L33: nov | M33: dec | N33: ytd_total
A34: chg_prv_06-05 | B34: =B5-B4 -> -35 | C34: -65 | D34: 1 | E34: 34 | F34: 55 | G34: 21 | H34: =H5-H4 -> 155 | I34: 36 | J34: 70 | K34: 69 | L34: 68 | M34: 51 | N34: =O5-O4 -> 1988
A35: %chg_prv_06-05 | B35: =(B34/B4)*100 -> -7.829977629 | C35: -17.9558011 | D35: 0.2793296089 | E35: 12.05673759 | F35: 20.75471698 | G35: 7.664233577 | H35: 67.98245614 | I35: 14.63414634 | J35: 39.3258427 | K35: 29.48717949 | L35: 14.7505423 | M35: 10.51546392 | N35: =(N34/O4)*100 -> 11.95933345
B37: jan-dec | C37: feb-jan | D37: mar-feb | E37: apr-mar | F37: may-apr | G37: jun-may | H37: jul-jun | I37: aug-jul | J37: sep-aug | K37: oct-sep | L37: nov-oct | M37: dec-nov
A38: change_07 | B38: =B6-M5 -> -112 | C38: =C6-B6 -> -68 | D38: 113 | E38: -19 | F38: -3 | G38: -98 | H38: 8 | I38: -114 | J38: =J6-I6 -> -44 | K38: =K6-J6 -> 47 | L38: =L6-K6 -> 288 | M38: =M6-L6 -> -12
A39: %change_07 | B39: =(B38/M5)*100 -> -20.89552239 | C39: =(C38/B6)*100 -> -16.03773585 | D39: 31.74157303 | E39: -4.051172708 | F39: -0.6666666667 | G39: -21.92393736 | H39: 2.29226361 | I39: -31.93277311 | J39: -18.10699588 | K39: 23.61809045 | L39: 117.0731707 | M39: -2.247191011
B40: jan | C40: feb | D40: mar | E40: apr | F40: may | G40: jun | H40: jul | I40: aug | J40: sep | K40: oct | L40: nov | M40: dec | N40: ytd_total
A41: chg_prv_07-06 | B41: =B6-B5 -> 12 | C41: 59 | D41: 110 | E41: 134 | F41: 127 | G41: 54 | H41: -26 | I41: -39 | J41: -49 | K41: -57 | L41: 5 | M41: -14 | N41: =O6-O5 -> 1134
A42: %chg_prv_07-06 | B42: =(B41/B5)*100 -> 2.912621359 | C42: 19.86531987 | D42: 30.64066852 | E42: 42.40506329 | F42: 39.6875 | G42: 18.30508475 | H42: -6.788511749 | I42: -13.82978723 | J42: -19.75806452 | K42: -18.81188119 | L42: 0.9451795841 | M42: -2.611940299 | N42: =(N41/O5)*100 -> 6.093170705
B44: jan-dec | C44: feb-jan | D44: mar-feb | E44: apr-mar | F44: may-apr | G44: jun-may | H44: jul-jun | I44: aug-jul | J44: sep-aug | K44: oct-sep | L44: nov-oct | M44: dec-nov
A45: change_08 | B45: =B7-M6 -> -65 | C45: =C7-B7 -> -93 | D45: 52 | E45: -88 | F45: 14 | G45: -50 | H45: 79 | I45: =I7-H7 -> -111 | J45: =J7-I7 -> -6 | K45: =K7-J7 -> 139 | L45: =L7-K7 -> 403 | M45: =M7-L7 -> 84
A46: %change_08 | B46: =(B45/M6)*100 -> -12.45210728 | C46: =(C45/B7)*100 -> -20.35010941 | D46: 14.28571429 | E46: -21.15384615 | F46: 4.268292683 | G46: -14.61988304 | H46: 27.05479452 | I46: -29.91913747 | J46: -2.307692308 | K46: 54.72440945 | L46: 102.5445293 | M46: 10.55276382
B47: jan | C47: feb | D47: mar | E47: apr | F47: may | G47: jun | H47: jul | I47: aug | J47: sep | K47: oct | L47: nov | M47: dec | N47: ytd_total
A48: chg_prv_08-07 | B48: =B7-B6 -> 33 | C48: 8 | D48: -53 | E48: -122 | F48: -105 | G48: -57 | H48: =H7-H6 -> 14 | I48: 17 | J48: 55 | K48: 147 | L48: 262 | M48: 358 | N48: =O7-O6 -> 3474
A49: %chg_prv_08-07 | B49: =(B48/B6)*100 -> 7.783018868 | C49: 2.247191011 | D49: -11.30063966 | E49: -27.11111111 | F49: -23.48993289 | G49: -16.33237822 | H49: 3.921568627 | I49: =(I48/I6)*100 -> 6.995884774 | J49: =(J48/J6)*100 -> 27.63819095 | K49: =(K48/K6)*100 -> 59.75609756 | L49: =(L48/L6)*100 -> 49.06367041 | M49: =(M48/M6)*100 -> 68.58237548 | N49: =(N48/O6)*100 -> 17.59432768
B51: jan-dec | C51: feb-jan | D51: mar-feb | E51: apr-mar | F51: may-apr | G51: jun-may | H51: jul-jun | I51: aug-jul | J51: sep-aug | K51: oct-sep | L51: nov-oct | M51: dec-nov
A52: change_09 | B52: =B8-M7 -> -70 | C52: =C8-B8 -> -40 | D52: 74 | E52: -44 | F52: -147 | G52: -74 | H52: -3 | I52: =I8-H8 -> -55 | J52: =J8-I8 -> -26 | K52: =K8-J8 -> 87 | L52: =L8-K8 -> 121 | M52: =M8-L8 -> 8
A53: %change_09 | B53: =(B52/M7)*100 -> -7.954545455 | C53: =(C52/B8)*100 -> -4.938271605 | D53: 9.61038961 | E53: -5.213270142 | F53: -18.375 | G53: -11.3323124 | H53: -0.518134715 | I53: =(I52/H8)*100 -> -9.548611111 | J53: =(J52/I8)*100 -> -4.990403071 | K53: =(K52/J8)*100 -> 17.57575758 | L53: =(L52/K8)*100 -> 20.79037801 | M53: =(M52/L8)*100 -> 1.137980085
B54: jan | C54: feb | D54: mar | E54: apr | F54: may | G54: jun | H54: jul | I54: aug | J54: sep | K54: oct | L54: nov | M54: dec | N54: ytd_total
A55: chg_prv_09-08 | B55: =B8-B7 -> 353 | C55: 406 | D55: 428 | E55: 472 | F55: 311 | G55: 287 | H55: =H8-H7 -> 205 | I55: 261 | J55: 241 | K55: 189 | L55: -93 | M55: -169 | N55: =O8-O7 -> 11533
A56: %chg_prv_09-08 | B56: =(B55/B7)*100 -> 77.2428884 | C56: 111.5384615 | D56: 102.8846154 | E56: 143.902439 | F56: 90.93567251 | G56: 98.28767123 | H56: 55.25606469 | I56: =(I55/I7)*100 -> 100.3846154 | J56: =(J55/J7)*100 -> 94.88188976 | K56: =(K55/K7)*100 -> 48.09160305 | L56: =(L55/L7)*100 -> -11.68341709 | M56: =(M55/M7)*100 -> -19.20454545 | N56: =(N55/O7)*100 -> 49.67052845
B58: jan-dec | C58: feb-jan | D58: mar-feb | E58: apr-mar | F58: may-apr | G58: jun-may | H58: jul-jun | I58: aug-jul | J58: sep-aug | K58: oct-sep | L58: nov-oct | M58: dec-nov
A59: change_10 | B59: =B9-M8 -> 134 | C59: =C9-B9 -> -255 | D59: -36 | E59: 8 | F59: -108 | G59: -2 | H59: 178 | I59: =I9-H9 -> -74 | J59: =J9-I9 -> -96 | K59: =K9-J9 -> 83 | L59: =L9-K9 -> 54 | M59: =M9-L9 -> 100
A60: %change_10 | B60: =(B59/M8)*100 -> 18.8466948 | C60: =(C59/B9)*100 -> -30.17751479 | D60: -6.101694915 | E60: 1.444043321 | F60: -19.21708185 | G60: -0.4405286344 | H60: 39.38053097 | I60: -11.74603175 | J60: -17.26618705 | K60: 18.04347826 | L60: 9.944751381 | M60: 16.75041876
B61: jan | C61: feb | D61: mar | E61: apr | F61: may | G61: jun | H61: jul | I61: aug | J61: sep | K61: oct | L61: nov | M61: dec | N61: ytd_total
A62: chg_prv_10-09 | B62: =B9-B8 -> 35 | C62: -180 | D62: -290 | E62: -238 | F62: -199 | G62: -127 | H62: =H9-H8 -> 54 | I62: 35 | J62: -35 | K62: -39 | L62: -106 | M62: -14 | N62: =O9-O8 -> -5180
A63: %chg_prv_10-09 | B63: =(B62/B8)*100 -> 4.320987654 | C63: -23.37662338 | D63: -34.36018957 | E63: -29.75 | F63: -30.47473201 | G63: -21.9343696 | H63: 9.375 | I63: =(I62/I8)*100 -> 6.717850288 | J63: =(J62/J8)*100 -> -7.070707071 | K63: =(K62/K8)*100 -> -6.701030928 | L63: =(L62/L8)*100 -> -15.07823613 | M63: =(M62/M8)*100 -> -1.969057665 | N63: =(N62/O8) *100 -> -14.90561694
B65: jan-dec | C65: feb-jan | D65: mar-feb | E65: apr-mar | F65: may-apr | G65: jun-may | H65: jul-jun | I65: aug-jul | J65: sep-aug | K65: oct-sep | L65: nov-oct | M65: dec-nov
A66: change_11 | B66: =B10-M9 -> 30 | C66: =C10-B10 -> -175 | D66: 10 | E66: -22 | F66: -89 | G66: -67 | H66: 27 | I66: =I10-H10 -> -4 | J66: =J10-I10 -> -105 | K66: =K10-J10 -> 85 | L66: =L10-K10 -> 125 | M66: =M10-L10 -> 68
A67: %change_11 | B67: =(B66/M9)*100 -> 4.304160689 | C67: =(C66/B10)*100 -> -24.07152682 | D67: 1.811594203 | E67: -3.914590747 | F67: -16.48148148 | G67: -14.85587583 | H67: 7.03125 | I67: -0.9732360097 | J67: -25.7985258 | K67: 28.14569536 | L67: 32.2997416 | M67: 13.28125
B68: jan | C68: feb | D68: mar | E68: apr | F68: may | G68: jun | H68: jul | I68: aug | J68: sep | K68: oct | L68: nov | M68: dec | N68: ytd_total
A69: chg_prv_11-10 | B69: =B10-B9 -> -118 | C69: -38 | D69: 8 | E69: -22 | F69: -3 | G69: -68 | H69: =H10-H9 -> -219 | I69: -149 | J69: -158 | K69: -156 | L69: -85 | M69: -117 | N69: =O10-O9 -> -4452
A70: %chg_prv_11-10 | B70: =(B69/B9)*100 -> -13.96449704 | C70: -6.440677966 | D70: 1.444043321 | E70: -3.914590747 | F70: -0.6607929515 | G70: -15.04424779 | H70: =(H69/H9)*100 -> -34.76190476 | I70: -26.79856115 | J70: -34.34782609 | K70: -28.72928177 | L70: -14.23785595 | M70: -16.78622669 | N70: =(N69/O9)*100 -> -15.05478155
B72: jan-dec | C72: feb-jan | D72: mar-feb | E72: apr-mar | F72: may-apr | G72: jun-may | H72: jul-jun | I72: aug-jul | J72: sep-aug | K72: oct-sep | L72: nov-oct | M72: dec-nov
A73: change_12 | B73: =B11-M10 -> -22 | C73: =C11-B11 -> -158 | D73: -3 | E73: -15 | F73: -53 | G73: 57 | H73: 84 | I73: =I11-H11 -> -124 | J73: =J11-I11 -> 19 | K73: =K11-J11 -> 3 | L73: =L11-K11 -> 234 | M73: =M11-L11 -> -73
A74: %change_12 | B74: =(B73/M10)*100 -> -3.793103448 | C74: =(C73/B11)*100 -> -28.31541219 | D74: -0.75 | E74: -3.778337531 | F74: -13.87434555 | G74: 17.32522796 | H74: 21.76165803 | I74: -26.38297872 | J74: 5.49132948 | K74: 0.8219178082 | L74: 63.58695652 | M74: -12.12624585
B75: jan | C75: feb | D75: mar | E75: apr | F75: may | G75: jun | H75: jul | I75: aug | J75: sep | K75: oct | L75: nov | M75: dec | N75: ytd_total
A76: chg_prv_12-11 | B76: =B11-B10 -> -169 | C76: -152 | D76: -165 | E76: -158 | F76: -122 | G76: 2 | H76: =H11-H10 -> 59 | I76: =I11-I10 -> -61 | J76: =J11-J10 -> 63 | K76: =K11-K10 -> -19 | L76: =L11-L10 -> 90 | M76: =M11-M10 -> -51 | N76: =O11-O10 -> -3151
A77: %chg_prv_12-11 | B77: =(B76/B10)*100 -> -23.24621733 | C77: -27.53623188 | D77: -29.3594306 | E77: -29.25925926 | F77: -27.05099778 | G77: 0.5208333333 | H77: 14.35523114 | I77: =(I76/I10)*100 -> -14.98771499 | J77: =(J76/J10)*100 -> 20.86092715 | K77: =(K76/K10)*100 -> -4.909560724 | L77: =(L76/L10)*100 -> 17.578125 | M77: =(M76/M10)*100 -> -8.793103448 | N77: =(N76/O10)*100 -> -12.54378981
B79: jan-dec | C79: feb-jan | D79: mar-feb | E79: apr-mar | F79: may-apr | G79: jun-may | H79: jul-jun | I79: aug-jul | J79: sep-aug | K79: oct-sep | L79: nov-oct | M79: dec-nov
A80: change_13 | B80: =B12-M11 -> -32 | C80: =C12-B12 -> -156 | D80: -5 | E80: 37 | F80: -94 | G80: -42 | H80: -16 | I80: =I12-H12 -> -25 | J80: -19 | K80: 42 | L80: 133 | M80: 63
A81: %change_13 | B81: =(B80/M11)*100 -> -6.049149338 | C81: =(C80/B12)*100 -> -31.38832998 | D81: -1.46627566 | E81: 11.01190476 | F81: -25.20107239 | G81: -15.05376344 | H81: -6.751054852 | I81: -11.31221719 | J81: -9.693877551 | K81: 23.72881356 | L81: 60.73059361 | M81: 17.89772727
B82: jan | C82: feb | D82: mar | E82: apr | F82: may | G82: jun | H82: jul | I82: aug | J82: sep | K82: oct | L82: nov | M82: dec | N82: ytd_total
A83: chg_prv_13-12 | B83: =B12-B11 -> -61 | C83: -59 | D83: -61 | E83: -9 | F83: -50 | G83: -149 | H83: =H12-H11 -> -249 | I83: -150 | J83: =J12-J11 -> -188 | K83: -149 | L83: =L12-L11 -> -250 | M83: -114 | N83: =O12-O11 -> -6212
A84: %chg_prv_13-12 | B84: =(B83/B11)*100 -> -10.93189964 | C84: -14.75 | D84: -15.36523929 | E84: -2.356020942 | F84: -15.19756839 | G84: -38.60103627 | H84: -52.9787234 | I84: =(I83/I11)*100 -> -43.35260116 | J84: -51.50684932 | K84: =(K83/K11)*100 -> -40.48913043 | L84: -41.5282392 | M84: =(M83/M11)*100 -> -21.55009452 | N84: =(N83/O11)*100 -> -28.27620738
B86: jan-dec | C86: feb-jan | D86: mar-feb | E86: apr-mar | F86: may-apr | G86: jun-may | H86: jul-jun | I86: aug-jul | J86: sep-aug | K86: oct-sep | L86: nov-oct | M86: dec-nov
A87: change_14 | B87: =B13-M12 -> -16 | C87: =C13-B13 -> -63 | D87: -24 | E87: -56 | F87: -26 | G87: 18 | H87: -41 | I87: -39 | J87: -29 | K87: 26 | L87: 247 | M87: -89
A88: %change_14 | B88: =(B87/M12)*100 -> -3.855421687 | C88: =(C87/B13)*100 -> -15.78947368 | D88: -7.142857143 | E88: -17.94871795 | F88: -10.15625 | G88: 7.826086957 | H88: -16.53225806 | I88: -18.84057971 | J88: -17.26190476 | K88: 18.70503597 | L88: 149.6969697 | M88: -21.60194175
B89: jan | C89: feb | D89: mar | E89: apr | F89: may | G89: jun | H89: jul | I89: aug | J89: sep | K89: oct | L89: nov | M89: dec | N89: ytd_total
A90: chg_prv_14-13 | B90: =B13-B12 -> -98 | C90: -5 | D90: -24 | E90: -117 | F90: -49 | G90: 11 | H90: =H13-H12 -> -14 | I90: -28 | J90: =J13-J12 -> -38 | K90: -54 | L90: =L13-L12 -> 60 | M90: -92 | N90: =O13-O12 -> -2279
A91: %chg_prv_14-13 | B91: =(B90/B12)*100 -> -19.71830986 | C91: -1.46627566 | D91: -7.142857143 | E91: -31.36729223 | F91: -17.56272401 | G91: 4.641350211 | H91: -6.334841629 | I91: =(I90/I12)*100 -> -14.28571429 | J91: -21.46892655 | K91: =(K90/K12)*100 -> -24.65753425 | L91: 17.04545455 | M91: =(M90/M12)*100 -> -22.1686747 | N91: =(N90/O12)*100 -> -14.46341309
B93: jan-dec | C93: feb-jan | D93: mar-feb | E93: apr-mar | F93: may-apr | G93: jun-may | H93: jul-jun | I93: aug-jul | J93: sep-aug | K93: oct-sep | L93: nov-oct | M93: dec-nov
A94: change_15 | B94: =B21-M20 -> 66.59954921
A95: %change_15 | B95: =(B94/M20)*100 -> -89.99939083
B96: jan | C96: feb | D96: mar | E96: apr | F96: may | G96: jun | H96: jul | I96: aug | J96: sep | K96: oct | L96: nov | M96: dec | N96: ytd_total
A97: chg_prv_15-14 | B97: =B21-B20 -> 31.99954921 | N97: =N14-N13 -> -13478
A98: %chg_prv_15-14 | B98: =(B97/B20)*100 -> -81.21712998 | N98: =(N97/N13)*100 -> -100

Sheet graphs
